[Event "American Cup Blitz 2024"]
[Site "Saint Louis"]
[Date "2024.03.21"]
[Round "1.1"]
[White "Caruana, Fabiano"]
[Black "Batsuren, Dambasuren"]
[Result "1-0"]
[ECO "C70"]
[WhiteElo "2804"]
[BlackElo "2515"]
[Annotator "TA"]
[PlyCount "79"]
[EventDate "2024.03.21"]
[EventType "swiss"]
[EventCountry "USA"]
[SourceTitle "playchess.com"]
[Source "ChessBase"]
[SourceQuality "1"]
[TimeControl "180+2"]

{[%evp 9,79,21,47,41,33,34,47,26,39,32,36,29,20,29,38,15,34,26,36,18,23,18,15,26,20,21,45,26,29,21,20,15,34,25,65,20,25,23,43,21,22,0,18,15,28,0,189,185,210,217,210,200,218,204,247,246,244,252,245,256,256,207,281,282,319,288,323,318,288,298,310,297]} 1. e4 {[%emt 0:00:01]} e5 {[%emt 0:00:07]} 2. Nf3 {[%emt 0:00:01]} Nc6 {[%emt 0:00:01]} 3. Bb5 {[%emt 0:00:01]} a6 {[%emt 0:00:03]} 4. Ba4 {[%emt 0:00:01]} Bc5 {[%emt 0:00:12]} 5. c3 {[%emt 0:00:06]} Nge7 {[%emt 0:00:04]} 6. d4 {[%emt 0:00:03]} exd4 {[%emt 0:00:03]} 7. cxd4 {[%emt 0:00:01]} Bb4+ {[%emt 0:00:01]} 8. Bd2 {[%emt 0:00:01] White is slightly better.} Bxd2+ {[%emt 0:00:06]} 9. Nbxd2 {[%emt 0:00:02]} d5 {[%emt 0:00:11]} 10. e5 {[%emt 0:00:01]} O-O {[%emt 0:00:07]} 11. O-O {[%emt 0:00:09]} Bf5 {[%emt 0:00:28]} 12. Re1 {[%emt 0:00:16]} f6 {[%emt 0:00:42]} 13. exf6 {[%emt 0:00:15]} Rxf6 {[%emt 0:00:02]} 14. Bxc6 {[%emt 0:00:15]} Nxc6 {[%emt 0:00:02]} 15. Qb3 {[%emt 0:00:01][%cal Oa1c1]} b6 {[%emt 0:00:36]} 16. Qc3 {[%emt 0:00:03]} Qd7 {[%emt 0:00:22]} 17. Rac1 {[%emt 0:00:02]} Raf8 {[%emt 0:00:04]} 18. Ne5 {[%emt 0:00:17]} Nxe5 {[%emt 0:00:02]} 19. Rxe5 {[%emt 0:00:01]} c6 {[%emt 0:00:11]} 20. Rce1 {[%emt 0:00:11]} Bg6 {[%emt 0:00:03]} 21. f3 {[%emt 0:00:04]} Re8 {[%emt 0:00:01]} 22. Qb4 {[%emt 0:00:25]} Qd8 {[%emt 0:00:05]} 23. Nf1 {[%emt 0:00:12][%cal Bd2f1,Bf1e3,Be3f5,Bf5e7][%mdl 32]} Rxe5 {[%emt 0:00:03]} 24. Rxe5 {[%emt 0:00:01]} Bf7 {[%emt 0:00:05]} 25. Qe1 {[%emt 0:00:20]} Kf8 {[%emt 0:00:07]} 26. Ne3 {[%emt 0:00:07]} Re6 {[%emt 0:00:01]} 27. Nf5 {[%emt 0:00:01]} Qd7 {[%emt 0:00:04] [#]} (27... Qf6 $11 {and Black has nothing to worry.} 28. g4 h5) 28. Qb4+ $1 $18 {[%emt 0:00:12]} c5 {[%emt 0:00:01]} 29. dxc5 {[%emt 0:00:01]} bxc5 {[%emt 0:00:03]} 30. Qxc5+ {[%emt 0:00:03]} Kg8 {[%emt 0:00:01] [#] Black is weak on the dark squares} 31. Rxe6 {[%emt 0:00:14]} (31. Rxd5 $2 {loses.} Re1+ 32. Kf2 Bxd5 $19 (32... Qxd5 33. Qxd5 Bxd5 34. Kxe1 $16)) ({But not} 31. Qxd5 Qxd5 32. Rxd5 Re1+ 33. Kf2 Bxd5) 31... Qxe6 {[%emt 0:00:02][%cal Re6e1][%mdl 4096] Endgame. KQB-KQN} 32. Ne7+ {[%emt 0:00:14]} Kh8 {[%emt 0:00:02][%cal Re6e1]} 33. Qc8+ {[%emt 0:00:01]} Qxc8 {[%emt 0:00:01]} 34. Nxc8 {[%emt 0:00:01] KB-KN} d4 {[%emt 0:00:02][%cal Bd5d4,Bd4d3][%mdl 32]} 35. a3 {[%emt 0:00:01]} Bc4 {[%emt 0:00:04] Hoping for ...d3.} 36. Kf2 {[%emt 0:00:02] White has a decisive advantage.} Kg8 {[%emt 0:00:01]} 37. Ne7+ {[%emt 0:00:02]} Kf8 {[%emt 0:00:01]} 38. Nc6 {[%emt 0:00:03]} d3 {[%emt 0:00:01] White must now prevent ...d2.} 39. Ke3 {[%emt 0:00:02]} Bb5 {[%emt 0:00:04]} 40. Ne5 {[%emt 0:00:01] Weighted Error Value: White=0.08 (flawless) /Black=0.22 (precise) .  Loses game:     	---       	Black=1      Inaccurate:     	White=2     	Black=2      OK:         	White=9     	Black=11     Best:        	White=1     	Black=3      Strong:       	White=1     	---} 1-0

[Event "American Cup Blitz 2024"]
[Site "Saint Louis"]
[Date "2024.03.21"]
[Round "1.2"]
[White "Boros, Denes"]
[Black "So, Wesley"]
[Result "0-1"]
[ECO "B53"]
[WhiteElo "2402"]
[BlackElo "2757"]
[Annotator "TA"]
[PlyCount "86"]
[EventDate "2024.03.21"]
[EventType "swiss"]
[EventCountry "USA"]
[SourceTitle "playchess.com"]
[Source "ChessBase"]
[SourceQuality "1"]
[TimeControl "180+2"]

{[%evp 9,86,2,15,14,15,0,35,28,28,44,34,16,30,22,13,0,0,0,0,0,0,0,39,-15,25,22,13,7,33,18,30,25,25,20,103,108,117,81,77,-20,-18,-39,-44,-87,-78,-177,-115,-125,-118,-429,-410,-541,-495,-479,-477,-471,-437,-444,-445,-450,-462,-739,-722,-711,-689,-700,-692,-1067,-1031,-1207,-1205,-5318,-4460,-5712,-4836,-1993,-1541,-29986,-29987]} 1. e4 {[%emt 0:00:01]} c5 {[%emt 0:00:01]} 2. Nf3 {[%emt 0:00:02]} d6 {[%emt 0:00:01]} 3. d4 {[%emt 0:00:02]} cxd4 {[%emt 0:00:01]} 4. Qxd4 {[%emt 0:00:01]} Nf6 {[%emt 0:00:02]} 5. Nc3 {[%emt 0:00:04]} Nc6 {[%emt 0:00:01]} 6. Qe3 {[%emt 0:00:01]} e6 {[%emt 0:00:09]} 7. b3 {[%emt 0:00:04]} d5 {[%emt 0:00:08]} 8. exd5 {[%emt 0:00:02] White is slightly better.} Nxd5 {[%emt 0:00:02]} 9. Nxd5 {[%emt 0:00:02]} Qxd5 {[%emt 0:00:01]} 10. Bb2 {[%emt 0:00:07]} Bb4+ {[%emt 0:00:02]} 11. c3 {[%emt 0:00:08]} (11. Nd2 {simplifies} Bxd2+ 12. Qxd2 Qxd2+ 13. Kxd2 f6 14. Re1) 11... Bc5 {[%emt 0:00:02]} 12. Qd3 {[%emt 0:00:10]} O-O {[%emt 0:00:09][%cal Be8g8,Bg8h8,Bh8g7][%mdl 32]} 13. Rd1 {[%emt 0:00:16]} Qxd3 {[%emt 0:00:24]} 14. Bxd3 {[%emt 0:00:02]} e5 {[%emt 0:00:01][%cal Oe5e4]} 15. O-O {[%emt 0:00:13]} Be7 {[%emt 0:00:10]} 16. b4 {[%emt 0:00:04]} (16. Be4 $14) 16... f6 {[%emt 0:00:20]} 17. Bc4+ {[%emt 0:00:20]} Kh8 {[%emt 0:00:01]} 18. h3 {[%emt 0:00:05][%cal Bh2h3,Bh3h4][%mdl 32]} g5 {[%emt 0:00:19][%cal Bg7g5,Bg5g4][%mdl 32]} 19. a3 {[%emt 0:00:14]} Kg7 {[%emt 0:00:04]} 20. Bd5 {[%emt 0:00:10]} Rd8 {[%emt 0:00:13]} 21. c4 {[%emt 0:00:13]} a5 {[%emt 0:00:07]} (21... a6 $11) 22. b5 $16 {[%emt 0:00:04]} Nb8 {[%emt 0:00:01]} 23. h4 {[%emt 0:00:16] Threatens to win with Rfe1.} g4 {[%emt 0:00:05]} 24. Nd2 {[%emt 0:00:01]} (24. Nxe5 $1 $16 {Strongly threatening Nd3.} fxe5 25. Bxe5+ Kh6 26. Rfe1 (26. Bc7 Rf8 $11) 26... Bxh4 27. c5 (27. Bc7 Rh8 $16)) 24... Nd7 $11 {[%emt 0:00:01]} 25. Ne4 {[%emt 0:00:02] Black must now prevent f4.} Nb6 {[%emt 0:00:03]} 26. f3 {[%emt 0:00:06] [#]} gxf3 {[%emt 0:00:06]} 27. Rxf3 {[%emt 0:00:01] [#]} (27. gxf3 $17 Nxd5 28. cxd5) 27... Bg4 {[%emt 0:00:25]} (27... Nxc4 $1 $19 28. Bc1 (28. Rg3+ Kh8 $17) 28... Be6 29. Rg3+ Kh8) 28. Rg3 $17 {[%emt 0:00:01]} h5 {[%emt 0:00:01] ...Nxc4 would now be deadly.} 29. Kh1 $2 {[%emt 0:00:24][%mdl 8192] White does not recover from this.} (29. Rdd3 $17 {is tougher.}) 29... Nxc4 $19 {[%emt 0:00:03]} 30. Bc1 {[%emt 0:00:06]} Nb6 {[%emt 0:00:04]} 31. Bb3 {[%emt 0:00:01]} a4 {[%emt 0:00:03]} 32. Bc2 {[%emt 0:00:07]} Rxd1+ {[%emt 0:00:17]} 33. Bxd1 {[%emt 0:00:01]} f5 {[%emt 0:00:02][%csl LRe4,LRh4][%cal Oe7h4] And now ...Bxh4! would win.} 34. Bxg4 {[%emt 0:00:08]} hxg4 {[%emt 0:00:01]} 35. Ng5 {[%emt 0:00:01]} (35. Bg5 $142 Bf8 (35... Bxg5 $2 36. Nxg5 Rh8 37. Kg1 $19) 36. Nf6) 35... Rc8 {[%emt 0:00:06]} 36. Bb2 {[%emt 0:00:13]} Bf6 {[%emt 0:00:08]} 37. Rd3 {[%emt 0:00:05]} Rc2 {[%emt 0:00:06]} 38. Rd6 {[%emt 0:00:02]} Nc4 {[%emt 0:00:03]} 39. Rd7+ {[%emt 0:00:03]} Kg6 {[%emt 0:00:01]} 40. Rc7 {[%emt 0:00:01]} Rxb2 {[%emt 0:00:06]} 41. Rxc4 {[%emt 0:00:01]} Bxg5 {[%emt 0:00:02]} 42. hxg5 {[%emt 0:00:01]} Rxb5 {[%emt 0:00:01] ( -> ...g3)} 43. Rxa4 {[%emt 0:00:02]} g3 {[%emt 0:00:02] Weighted Error Value: White=1.03/Black=0.22 (precise) .  Loses game:     	White=1     	---        Mistake:       	White=4     	Black=2      Inaccurate:     	White=3     	Black=4      OK:         	White=9     	Black=10     Best:        	White=2     	Black=4} 0-1

[Event "American Cup Blitz 2024"]
[Site "Saint Louis"]
[Date "2024.03.21"]
[Round "1.3"]
[White "Aronian, Levon"]
[Black "Sargsyan, Anna M."]
[Result "1-0"]
[ECO "C54"]
[WhiteElo "2722"]
[BlackElo "2377"]
[Annotator "TA"]
[PlyCount "62"]
[EventDate "2024.03.21"]
[EventType "swiss"]
[EventCountry "USA"]
[SourceTitle "playchess.com"]
[Source "ChessBase"]
[SourceQuality "1"]
[TimeControl "180+2"]

{[%evp 12,62,18,13,31,11,33,29,37,37,113,122,116,130,135,137,108,108,104,130,116,113,95,104,116,127,137,74,52,38,116,125,220,217,225,164,232,238,322,349,310,255,331,328,420,430,412,238,252,240,322,304,380]} 1. e4 {[%emt 0:00:02]} e5 {[%emt 0:00:03]} 2. Nf3 {[%emt 0:00:01]} Nc6 {[%emt 0:00:01]} 3. Bc4 {[%emt 0:00:01]} Bc5 {[%emt 0:00:03]} 4. d3 {[%emt 0:00:01]} Nf6 {[%emt 0:00:07]} 5. O-O {[%emt 0:00:02]} d6 {[%emt 0:00:01]} 6. c3 {[%emt 0:00:02]} O-O {[%emt 0:00:12]} 7. Re1 {[%emt 0:00:03]} a6 {[%emt 0:00:04]} 8. Nbd2 {[%emt 0:00:03]} Re8 {[%emt 0:00:12]} 9. Nf1 {[%emt 0:00:05]} Be6 {[%emt 0:00:07] Weiß hat minimalen Vorteil.} 10. Bxe6 {[%emt 0:00:06]} Rxe6 {[%emt 0:00:41] [#]} ({Günstiger ist} 10... fxe6 $14 11. Ng3 Rf8) 11. d4 $1 $16 {[%emt 0:00:01]} exd4 {[%emt 0:00:01]} 12. cxd4 {[%emt 0:00:00][%cal Bc3d4,Bd4d5][%mdl 32]} Bb4 {[%emt 0:00:01]} 13. d5 $1 {[%emt 0:00:01]} Bxe1 {[%emt 0:00:01]} 14. dxe6 {[%emt 0:00:01]} Bxf2+ {[%emt 0:00:36]} 15. Kxf2 {[%emt 0:00:00]} Nxe4+ {[%emt 0:00:01]} 16. Kg1 {[%emt 0:00:22]} fxe6 {[%emt 0:00:02]} 17. Be3 {[%emt 0:00:02]} d5 {[%emt 0:00:04]} 18. Qb3 {[%emt 0:00:12]} Na5 {[%emt 0:00:06]} 19. Qc2 {[%emt 0:00:09]} (19. Qb4 $142 b6 20. N1d2) 19... Nc4 {[%emt 0:00:02]} 20. Re1 {[%emt 0:00:06] Schwarz muss nun Ng3 beachten.} Qf6 {[%emt 0:00:09]} (20... Nxe3 $1 $14 21. Rxe3 (21. Nxe3 Qd6 $16) 21... Qd6) 21. Bd4 $36 {[%emt 0:00:07][%mdl 2048] Weiss ist am Drücker.} (21. N1d2 {vereinfacht} Nexd2 22. Bxd2 Qxb2 23. Qxb2 Nxb2 24. Rxe6 Nc4 25. Re7) 21... Qg6 {[%emt 0:00:01]} (21... Qe7 $16 {war angesagt.} 22. Ng3 Ncd6) 22. b3 $18 {[%emt 0:00:13]} Ncd6 {[%emt 0:00:06]} 23. Ne5 {[%emt 0:00:18]} Qg5 {[%emt 0:00:14]} (23... Qe8 {war nötig.} 24. Qxc7 Rc8) 24. Qxc7 {[%emt 0:00:10][%cal Oe1e4] Und jetzt Rxe4! wäre schön.} Rf8 {[%emt 0:00:05]} 25. Qd7 {[%emt 0:00:01]} Qf6 {[%emt 0:00:38] Zielt auf ...Nb5 ab.} 26. Nf3 {[%emt 0:00:20]} Qg6 {[%emt 0:00:04] [#]} 27. Ng3 $1 {[%emt 0:00:27]} Rf7 {[%emt 0:00:08]} (27... Qf7 28. Qxf7+) 28. Qd8+ {[%emt 0:00:10]} Rf8 {[%emt 0:00:00]} 29. Qh4 {[%emt 0:00:01]} (29. Qb6 $142) 29... Nf5 {[%emt 0:00:03]} 30. Nxf5 {[%emt 0:00:03]} Qxf5 {[%emt 0:00:02]} 31. Rc1 {[%emt 0:00:15] Rc7 ist eine echte Drohung.} e5 {[%emt 0:00:07] Gewichteter Fehlerwert: Weiß=0.25 (präzise) /Schwarz=0.37.  Fehler:       	Weiß=2     	Schwarz=4     Ungenau:       	---       	Schwarz=2     OK:         	Weiß=11    	Schwarz=5     Bester:       	Weiß=2     	Schwarz=3     Stark:        	Weiß=2     	---} 1-0

[Event "American Cup Blitz 2024"]
[Site "Saint Louis"]
[Date "2024.03.21"]
[Round "1.4"]
[White "Abrahamyan, Tatev"]
[Black "Dominguez Perez, Leinier"]
[Result "0-1"]
[ECO "B90"]
[WhiteElo "2308"]
[BlackElo "2749"]
[Annotator "TA"]
[PlyCount "62"]
[EventDate "2024.03.21"]
[EventType "swiss"]
[EventCountry "USA"]
[SourceTitle "playchess.com"]
[Source "ChessBase"]
[SourceQuality "1"]
[TimeControl "180+2"]

{[%evp 13,62,23,33,11,10,15,22,10,25,29,26,18,31,19,6,-19,-33,-12,-33,-26,-16,-7,-22,-46,-48,-58,-48,-51,0,0,0,-25,0,-149,48,-147,-137,-137,46,49,45,10,38,56,71,37,35,-898,-1018,-1013,-1010]} 1. e4 {[%emt 0:00:02]} c5 {[%emt 0:00:01]} 2. Nf3 {[%emt 0:00:01]} d6 {[%emt 0:00:00]} 3. d4 {[%emt 0:00:02]} cxd4 {[%emt 0:00:02]} 4. Nxd4 {[%emt 0:00:01]} Nf6 {[%emt 0:00:01]} 5. Nc3 {[%emt 0:00:01]} a6 {[%emt 0:00:01]} 6. Be3 {[%emt 0:00:04]} e5 {[%emt 0:00:01]} 7. Nb3 {[%emt 0:00:01]} Be6 {[%emt 0:00:01]} 8. h3 {[%emt 0:00:02]} Be7 {[%emt 0:00:02]} 9. f4 {[%emt 0:00:16]} exf4 {[%emt 0:00:06]} 10. Bxf4 {[%emt 0:00:01] Die Stellung ist ausgeglichen.} Nc6 {[%emt 0:00:01]} 11. Qe2 {[%emt 0:00:09]} Ne5 {[%emt 0:00:11]} 12. O-O-O {[%emt 0:00:10] Schwarz muss nun Bxe5 beachten.} Nfd7 {[%emt 0:00:01]} 13. Nd4 {[%emt 0:00:23]} Rc8 {[%emt 0:00:08][%cal Oc8c3]} 14. Nd5 {[%emt 0:00:19]} Bxd5 {[%emt 0:00:03]} 15. exd5 {[%emt 0:00:01]} O-O {[%emt 0:00:02]} 16. Kb1 {[%emt 0:00:06]} Re8 {[%emt 0:00:04]} 17. Nf5 {[%emt 0:00:25]} Bf8 {[%emt 0:00:04]} 18. Qf2 {[%emt 0:00:11]} Qf6 $1 {[%emt 0:00:20]} 19. g4 {[%emt 0:00:12][%cal Bg2g4,Bg4g5][%mdl 32]} g6 $1 {[%emt 0:00:01]} 20. Nd4 {[%emt 0:00:17]} Bg7 {[%emt 0:00:19]} (20... Bh6 $15 21. Bg3 Bg7) 21. g5 $11 {[%emt 0:00:05]} Qd8 {[%emt 0:00:02]} 22. h4 {[%emt 0:00:32]} Qb6 {[%emt 0:00:11]} 23. Bh3 {[%emt 0:00:05] Pariert Ng4.} (23. Bc1 $1 $11) 23... Rc4 $2 {[%emt 0:00:12] [#]} ({Besser ist} 23... Nc4 $1 $17 {[%csl Gc4][%cal Rb6b2]} 24. c3 Re4) 24. c3 $2 {[%emt 0:00:10]} Nc5 $36 {[%emt 0:00:02][%mdl 2048] Zielt auf ...Ne4 ab. Schwarz bestimmt, wo es lang geht. Hervorragende Reitkunst.} ({Viel schwächer ist} 24... Rxc3 25. Bxd7 Nxd7 26. Rhf1 $11) 25. Nb3 {[%emt 0:00:04]} Qc7 $2 {[%emt 0:00:19]} ({Vorzuziehen ist} 25... Ned3 $17 26. Rxd3 Rxf4) 26. Nxc5 $14 {[%emt 0:00:02]} Rxc5 {[%emt 0:00:02]} 27. h5 {[%emt 0:00:01]} Nc4 {[%emt 0:00:02]} 28. Bc1 {[%emt 0:00:02]} Rb5 {[%emt 0:00:13] ...Na3+ ist eine echte Drohung.} 29. hxg6 {[%emt 0:00:03]} hxg6 {[%emt 0:00:02] Droht ...Na3+ und aus.} 30. Ka1 $2 {[%emt 0:00:04][%mdl 8192] [#]} (30. Bf1 $14) 30... Nxb2 $1 $19 {[%emt 0:00:05][%mdl 512]} 31. Bxb2 {[%emt 0:00:08] [#]} Rxb2 $1 {[%emt 0:00:02][%mdl 512] Gewichteter Fehlerwert: Weiß=0.61/Schwarz=0.23 (präzise) .  Verlustzug:     	Weiß=1     	---        Fehler:       	Weiß=2     	Schwarz=3     Ungenau:       	Weiß=2     	Schwarz=1     OK:         	Weiß=12    	Schwarz=4     Bester:       	---       	Schwarz=1     Stark:        	---       	Schwarz=2     Brilliant:      	---       	Schwarz=1} 0-1

[Event "American Cup Blitz 2024"]
[Site "Saint Louis"]
[Date "2024.03.21"]
[Round "1.5"]
[White "Le, Quang Liem"]
[Black "Tokhirjonova, Gulrukhbegim"]
[Result "1-0"]
[ECO "E04"]
[WhiteElo "2731"]
[BlackElo "2365"]
[Annotator "TA"]
[PlyCount "104"]
[EventDate "2024.03.21"]
[EventType "swiss"]
[EventCountry "USA"]
[SourceTitle "playchess.com"]
[Source "ChessBase"]
[SourceQuality "1"]
[TimeControl "180+2"]

{[%evp 11,104,35,26,25,45,36,29,34,22,23,18,10,13,13,38,10,8,4,0,0,8,0,0,-106,33,0,10,12,54,14,25,33,100,116,81,88,129,134,122,127,112,121,314,330,328,299,314,327,278,275,299,292,302,270,377,374,379,364,304,304,672,650,1395,599,599,581,879,796,783,660,3681,1344,5522,9241,29953,29950,7201,12821,29949,5051,8135,7175,29969,29968,29964,29946,29958,29960,29964,29968,29964,29965,6544,10516,5210]} 1. d4 {[%emt 0:00:02]} d5 {[%emt 0:00:01]} 2. c4 {[%emt 0:00:02]} e6 {[%emt 0:00:01]} 3. Nf3 {[%emt 0:00:01]} Nf6 {[%emt 0:00:01]} 4. g3 {[%emt 0:00:01]} dxc4 {[%emt 0:00:06]} 5. Bg2 {[%emt 0:00:01]} Bb4+ {[%emt 0:00:02]} 6. Bd2 {[%emt 0:00:01]} a5 {[%emt 0:00:01]} 7. Qc2 {[%emt 0:00:06]} c5 {[%emt 0:00:05]} 8. a3 {[%emt 0:00:10]} Bxd2+ {[%emt 0:00:05]} 9. Nbxd2 {[%emt 0:00:02] White has an edge.} cxd4 {[%emt 0:00:05]} 10. Nxc4 {[%emt 0:00:02][%cal Of3d4]} Nc6 {[%emt 0:00:04]} 11. Rd1 {[%emt 0:00:02][%cal Of3d4]} O-O {[%emt 0:00:07]} 12. O-O {[%emt 0:00:02]} Re8 {[%emt 0:00:40]} 13. Nce5 {[%emt 0:00:20]} Bd7 {[%emt 0:00:37][%cal Bc8d7,Bd7c6,Bc6b5][%mdl 32]} 14. Nxc6 {[%emt 0:00:33]} Bxc6 {[%emt 0:00:01]} 15. Rxd4 {[%emt 0:00:02]} Qb6 {[%emt 0:00:02]} 16. Rfd1 {[%emt 0:00:05]} Rac8 {[%emt 0:00:04] [#] White must now prevent ...Bxf3.} 17. Rc4 {[%emt 0:00:16]} (17. Qb1 $1 $11 {keeps the balance.}) 17... Rcd8 {[%emt 0:00:11]} (17... Be4 $1 $17 {[%cal Re4c2]} 18. Qc3 Rxc4 19. Qxc4 Qxb2) 18. Rc1 {[%emt 0:00:06]} e5 {[%emt 0:00:08]} 19. Nd2 {[%emt 0:00:29]} Bb5 {[%emt 0:00:40]} 20. Rc7 {[%emt 0:00:03]} (20. Qb3 $5) 20... Bxe2 {[%emt 0:00:23]} (20... Ng4 {keeps more tension.} 21. e3 Qh6 22. Nf1 Bxf1 23. Kxf1 Nxh2+ 24. Kg1 Qh5) 21. Rxb7 {[%emt 0:00:02]} Qd6 {[%emt 0:00:07]} (21... Qe6 $14) 22. Nc4 {[%emt 0:00:16]} Bxc4 {[%emt 0:00:02]} 23. Qxc4 $40 {[%emt 0:00:01][%mdl 128] Black is in trouble.} Re7 {[%emt 0:00:03]} 24. Qc5 {[%emt 0:00:23] White is more active.} Qxc5 {[%emt 0:00:03]} 25. Rxc5 {[%emt 0:00:01]} Rxb7 {[%emt 0:00:02]} 26. Bxb7 $16 {[%emt 0:00:02][%mdl 4096] Endgame. KRB-KRN} Rb8 $2 {[%emt 0:00:04] Black cannot hold the game after this.} (26... Kf8 $16) 27. Rxa5 $1 $18 {[%emt 0:00:01]} Kf8 {[%emt 0:00:04]} 28. Ra8 {[%emt 0:00:03]} Rxa8 {[%emt 0:00:01]} 29. Bxa8 {[%emt 0:00:01] KB-KN} Ke7 {[%emt 0:00:00]} 30. Kf1 {[%emt 0:00:03]} Kd6 {[%emt 0:00:01]} 31. Ke2 {[%emt 0:00:01]} Kc5 {[%emt 0:00:01]} 32. b4+ {[%emt 0:00:17]} Kd4 {[%emt 0:00:01]} 33. Bc6 {[%emt 0:00:03] [#] Dodges Ne8. Hoping for a4.} Ng8 {[%emt 0:00:04]} 34. a4 {[%emt 0:00:04] a5 is the strong threat.} Ne7 {[%emt 0:00:01]} 35. Be8 {[%emt 0:00:01][%cal Oa4a5] a5! would now be deadly.} f5 $2 {[%emt 0:00:01]} (35... Nd5 36. a5 (36. Bxf7 Nc3+ 37. Kf3 Nxa4 $18) 36... Nxb4 37. Bxf7 Kc5) 36. a5 {[%emt 0:00:01] Strongly threatening b5.} Kc4 {[%emt 0:00:05]} 37. a6 {[%emt 0:00:03]} (37. b5 $142) 37... Nc8 {[%emt 0:00:01]} 38. Bd7 {[%emt 0:00:04][%csl LRc8,LRf5]} Nb6 {[%emt 0:00:09]} 39. Bxf5 {[%emt 0:00:02]} g6 {[%emt 0:00:01]} 40. Be6+ {[%emt 0:00:03]} Kxb4 {[%emt 0:00:01]} 41. Ke3 {[%emt 0:00:01] And now Ke4 would win.} Kb5 {[%emt 0:00:03]} 42. Ke4 {[%emt 0:00:04]} Kxa6 {[%emt 0:00:01]} 43. Kxe5 {[%emt 0:00:01]} Kb5 {[%emt 0:00:03]} 44. Bg8 {[%emt 0:00:02]} h6 {[%emt 0:00:03]} 45. Bf7 {[%emt 0:00:02]} (45. Kf6 $142 g5 46. Kg6 Nd7 47. Kxh6 Nc5 48. Kxg5 (48. f3 Nd3 $18) 48... Kc6 49. h4 Kd7 50. h5 Ne4+ 51. Kg6) 45... g5 {[%emt 0:00:00]} 46. Kf5 {[%emt 0:00:01] White threatens Kg6 and mate.} Nc8 {[%emt 0:00:04]} 47. Kg6 {[%emt 0:00:02]} Nd6 {[%emt 0:00:02]} 48. Bd5 {[%emt 0:00:04]} Kc5 {[%emt 0:00:00]} 49. Bf3 {[%emt 0:00:01]} Nc4 {[%emt 0:00:05]} 50. Kxh6 {[%emt 0:00:02]} Ne5 {[%emt 0:00:00]} 51. Be2 {[%emt 0:00:02]} g4 {[%emt 0:00:04]} 52. Kg5 {[%emt 0:00:02]} Kd5 {[%emt 0:00:05] Weighted Error Value: White=0.26 (precise) /Black=0.69.  Loses game:     	---       	Black=1      Mistake:       	White=1     	Black=3      Inaccurate:     	White=3     	Black=5      OK:         	White=11    	Black=12     Best:        	White=1     	Black=2      Strong:       	White=1     	---} 1-0

[Event "American Cup Blitz 2024"]
[Site "Saint Louis"]
[Date "2024.03.21"]
[Round "1.6"]
[White "Robson, Ray"]
[Black "Sukandar, Irine Kharisma"]
[Result "1-0"]
[ECO "A34"]
[WhiteElo "2696"]
[BlackElo "2349"]
[Annotator "TA"]
[PlyCount "65"]
[EventDate "2024.03.21"]
[EventType "swiss"]
[EventCountry "USA"]
[SourceTitle "playchess.com"]
[Source "ChessBase"]
[SourceQuality "1"]
[TimeControl "180+2"]

{[%evp 10,65,21,16,36,21,44,34,41,10,12,19,27,33,82,81,113,60,63,64,55,48,64,30,22,20,18,8,25,5,44,6,23,20,7,0,0,0,4,0,11,8,34,10,22,7,72,66,58,62,81,80,118,81,101,93,141,120]} 1. c4 {[%emt 0:00:01]} c5 {[%emt 0:00:07]} 2. Nf3 {[%emt 0:00:01]} Nf6 {[%emt 0:00:01]} 3. Nc3 {[%emt 0:00:01]} Nc6 {[%emt 0:00:04]} 4. g3 {[%emt 0:00:01]} e5 {[%emt 0:00:14]} 5. Bg2 {[%emt 0:00:02]} d6 {[%emt 0:00:08]} 6. O-O {[%emt 0:00:03]} g6 {[%emt 0:00:14]} 7. a3 {[%emt 0:00:17][%cal Ob2b4]} Bg7 {[%emt 0:00:06]} 8. b4 {[%emt 0:00:02]} O-O {[%emt 0:00:08] White is slightly better.} 9. bxc5 {[%emt 0:00:07]} dxc5 {[%emt 0:00:01]} 10. Rb1 {[%emt 0:00:24]} h6 {[%emt 0:00:16]} 11. d3 {[%emt 0:00:04]} Re8 {[%emt 0:00:22]} (11... Rb8 $14) 12. Nd2 $16 {[%emt 0:00:13]} Nd4 {[%emt 0:00:12]} 13. e3 {[%emt 0:00:27]} (13. Bxb7 $16 Bxb7 14. Rxb7) 13... Ne6 $14 {[%emt 0:00:16]} 14. Nd5 {[%emt 0:00:08]} Rb8 {[%emt 0:00:17]} 15. Bb2 {[%emt 0:00:09]} Nc7 {[%emt 0:00:05][%cal Rc7d5]} 16. Nxf6+ {[%emt 0:00:08]} (16. e4 {with more complications.} b6 17. f4 exf4 18. Rxf4 Nd7 19. Bxg7 Kxg7 20. Qc2) 16... Qxf6 {[%emt 0:00:07]} 17. Ne4 {[%emt 0:00:09]} Qe7 {[%emt 0:00:01]} 18. Qe2 {[%emt 0:00:18]} Be6 {[%emt 0:00:02]} 19. a4 {[%emt 0:00:14]} Red8 {[%emt 0:00:03]} 20. a5 {[%emt 0:00:05]} b5 {[%emt 0:00:08]} 21. axb6 {[%emt 0:00:13]} axb6 {[%emt 0:00:03]} 22. Ba3 {[%emt 0:00:04]} Qd7 {[%emt 0:00:10][%cal Of7f5]} 23. Rfd1 {[%emt 0:00:04]} Bg4 {[%emt 0:00:01]} 24. Bf3 {[%emt 0:00:07]} Bxf3 {[%emt 0:00:03]} 25. Qxf3 {[%emt 0:00:01]} Ra8 {[%emt 0:00:16]} 26. Bb2 {[%emt 0:00:05]} Qc6 {[%emt 0:00:12] Prevents Nf6+.} 27. Kg2 {[%emt 0:00:08][%cal Bg1g2,Bg2f3,Bf3e2][%mdl 32]} Rd7 {[%emt 0:00:03]} (27... Ra4 $11 {keeps the balance.}) 28. Nc3 $16 {[%emt 0:00:03]} Qxf3+ {[%emt 0:00:03]} 29. Kxf3 {[%emt 0:00:01]} Rad8 {[%emt 0:00:06] [#]} 30. Ke2 $1 {[%emt 0:00:01]} Na6 {[%emt 0:00:03]} 31. Nd5 {[%emt 0:00:02][%cal Ob2c3]} Nb4 {[%emt 0:00:01]} 32. e4 {[%emt 0:00:01]} ({But not} 32. Nxb6 Rd6 33. Nd5 Nxd5 34. cxd5 Rxd5 $14) 32... Rd6 {[%emt 0:00:09]} (32... b5 $142) 33. Bc3 {[%emt 0:00:03] Weighted Error Value: White=0.13 (very precise) /Black=0.17 (very precise) .  Mistake:       	White=1     	Black=3      Inaccurate:     	White=4     	Black=4      OK:         	White=6     	Black=8      Best:        	White=1     	---        Strong:       	White=1     	---} 1-0